[Event "Titled Tuesday Blitz October 31 Early 2023"]
[White "Witty_Alien"]
[Black "Rosh Jain"]
[BlackFideId "25789465"]
[WhiteElo "2230"]
[BlackElo "2440"]
[Result "1/2-1/2"]
[Round "4"]
[TimeControl "180+1"]
[Date "2023.10.31"]
[WhiteClock "0:00:05"]
[BlackClock "0:00:05"]
[Board "147"]

1. e4 {[%clk 0:03:00]}  c5 {[%clk 0:02:57]} 2. Nf3 {[%clk 0:03:01]}  d6 {[%clk 0:02:56]} 3. d4 {[%clk 0:02:58]}  cxd4 {[%clk 0:02:57]} 4. c3 {[%clk 0:02:57]}  Nf6 {[%clk 0:02:58]} 5. Bd3 {[%clk 0:02:55]}  dxc3 {[%clk 0:02:55]} 6. O-O {[%clk 0:02:54]}  g6 {[%clk 0:02:55]} 7. Nxc3 {[%clk 0:02:47]}  Bg7 {[%clk 0:02:52]} 8. Bg5 {[%clk 0:02:45]}  O-O {[%clk 0:02:51]} 9. Rc1 {[%clk 0:02:44]}  Nc6 {[%clk 0:02:50]} 10. Re1 {[%clk 0:02:43]}  Bg4 {[%clk 0:02:49]} 11. h3 {[%clk 0:02:41]}  Bxf3 {[%clk 0:02:48]} 12. Qxf3 {[%clk 0:02:42]}  Ne5 {[%clk 0:02:46]} 13. Qg3 {[%clk 0:02:40]}  Nh5 {[%clk 0:02:13]} 14. Qe3 {[%clk 0:02:36]}  h6 {[%clk 0:02:12]} 15. Bh4 {[%clk 0:02:20]}  Nxd3 {[%clk 0:02:03]} 16. Qxd3 {[%clk 0:02:14]}  Nf4 {[%clk 0:02:03]} 17. Qe3 {[%clk 0:01:56]}  Ne6 {[%clk 0:02:02]} 18. Nd5 {[%clk 0:01:52]}  g5 {[%clk 0:02:00]} 19. Bg3 {[%clk 0:01:52]}  Bxb2 {[%clk 0:01:59]} 20. e5 {[%clk 0:01:07]}  Bxc1 {[%clk 0:01:54]} 21. Rxc1 {[%clk 0:01:07]}  dxe5 {[%clk 0:01:52]} 22. Qxe5 {[%clk 0:01:06]}  Re8 {[%clk 0:01:47]} 23. h4 {[%clk 0:00:57]}  Qd7 {[%clk 0:01:28]} 24. Rc4 {[%clk 0:00:34]}  Rac8 {[%clk 0:01:19]} 25. Rg4 {[%clk 0:00:31]}  Nf8 {[%clk 0:01:01]} 26. f3 {[%clk 0:00:21]}  Ng6 {[%clk 0:00:58]} 27. Qd4 {[%clk 0:00:19]}  Qe6 {[%clk 0:00:44]} 28. hxg5 {[%clk 0:00:18]}  h5 {[%clk 0:00:33]} 29. Re4 {[%clk 0:00:18]}  Qf5 {[%clk 0:00:31]} 30. Be1 {[%clk 0:00:10]}  Rc1 {[%clk 0:00:23]} 31. Nf6+ {[%clk 0:00:07]}  exf6 {[%clk 0:00:20]} 32. Rxe8+ {[%clk 0:00:07]}  Kg7 {[%clk 0:00:18]} 33. gxf6+ {[%clk 0:00:08]}  Qxf6 {[%clk 0:00:19]} 34. Rg8+ {[%clk 0:00:08]}  Kxg8 {[%clk 0:00:18]} 35. Qxf6 {[%clk 0:00:09]}  Rxe1+ {[%clk 0:00:18]} 36. Kf2 {[%clk 0:00:09]}  Re6 {[%clk 0:00:15]} 37. Qd8+ {[%clk 0:00:08]}  Kh7 {[%clk 0:00:15]} 38. Qd7 {[%clk 0:00:07]}  Re7 {[%clk 0:00:15]} 39. Qd3 {[%clk 0:00:06]}  Kh6 {[%clk 0:00:14]} 40. Qd2+ {[%clk 0:00:06]}  Kg7 {[%clk 0:00:14]} 41. Qb2+ {[%clk 0:00:06]}  Kg8 {[%clk 0:00:13]} 42. Qb5 {[%clk 0:00:06]}  h4 {[%clk 0:00:12]} 43. a4 {[%clk 0:00:04]}  a6 {[%clk 0:00:12]} 44. Qb4 {[%clk 0:00:03]}  Kg7 {[%clk 0:00:12]} 45. Qb2+ {[%clk 0:00:03]}  Kf8 {[%clk 0:00:11]} 46. Qb4 {[%clk 0:00:04]}  Ke8 {[%clk 0:00:12]} 47. Qg4 {[%clk 0:00:04]}  Kd8 {[%clk 0:00:11]} 48. Qd4+ {[%clk 0:00:04]}  Kc7 {[%clk 0:00:11]} 49. a5 {[%clk 0:00:03]}  Kc6 {[%clk 0:00:10]} 50. Qb6+ {[%clk 0:00:03]}  Kd5 {[%clk 0:00:11]} 51. Kg1 {[%clk 0:00:03]}  Kc4 {[%clk 0:00:10]} 52. Kh2 {[%clk 0:00:03]}  Kd3 {[%clk 0:00:10]} 53. Qb3+ {[%clk 0:00:02]}  Kd4 {[%clk 0:00:10]} 54. Qb2+ {[%clk 0:00:02]}  Kc4 {[%clk 0:00:10]} 55. Qb6 {[%clk 0:00:02]}  Kd5 {[%clk 0:00:08]} 56. Qf6 {[%clk 0:00:02]}  Kc5 {[%clk 0:00:07]} 57. Qb6+ {[%clk 0:00:02]}  Kc4 {[%clk 0:00:08]} 58. Qb2 {[%clk 0:00:02]}  Kd3 {[%clk 0:00:07]} 59. f4 {[%clk 0:00:02]}  Ke4 {[%clk 0:00:04]} 60. f5 {[%clk 0:00:02]}  Kxf5 {[%clk 0:00:04]} 61. Qf2+ {[%clk 0:00:02]}  Kg5 {[%clk 0:00:04]} 62. Qd2+ {[%clk 0:00:02]}  Kh5 {[%clk 0:00:04]} 63. Qd5+ {[%clk 0:00:02]}  Kh6 {[%clk 0:00:04]} 64. Qd8 {[%clk 0:00:02]}  Kg7 {[%clk 0:00:05]} 65. Qd4+ {[%clk 0:00:02]}  Kf8 {[%clk 0:00:05]} 66. Qd8+ {[%clk 0:00:02]}  Kg7 {[%clk 0:00:06]} 67. Qd4+ {[%clk 0:00:03]}  Kh7 {[%clk 0:00:06]} 68. Qd5 {[%clk 0:00:03]}  Kh6 {[%clk 0:00:06]} 69. Qd4 {[%clk 0:00:04]}  Kg5 {[%clk 0:00:06]} 70. Qd5+ {[%clk 0:00:04]}  Kg4 {[%clk 0:00:06]} 71. Qd4+ {[%clk 0:00:04]}  Kf5 {[%clk 0:00:06]} 72. Qd5+ {[%clk 0:00:05]}  Kf6 {[%clk 0:00:06]} 73. Qd6+ {[%clk 0:00:05]}  Re6 {[%clk 0:00:05]} 74. Qd8+ {[%clk 0:00:05]}  Re7 {[%clk 0:00:04]} 75. Qd4+ {[%clk 0:00:05]}  Ke6 {[%clk 0:00:04]} 76. Qe4+ {[%clk 0:00:05]}  Kd6 {[%clk 0:00:05]} 77. Qd4+ {[%clk 0:00:06]}  Kc7 {[%clk 0:00:05]} 78. Qb6+ {[%clk 0:00:06]}  Kb8 {[%clk 0:00:05]} 79. Qd8+ {[%clk 0:00:06]}  Ka7 {[%clk 0:00:05]} 80. Qb6+ {[%clk 0:00:07]}  Kb8 {[%clk 0:00:06]} 81. Qd8+ {[%clk 0:00:07]}  Ka7 {[%clk 0:00:06]} 82. Kh3 {[%clk 0:00:08]}  Re3+ {[%clk 0:00:05]} 83. Kg4 {[%clk 0:00:07]}  Rg3+ {[%clk 0:00:04]} 84. Kf5 {[%clk 0:00:05]}  Rxg2 {[%clk 0:00:04]} 85. Qb6+ {[%clk 0:00:05]}  Ka8 {[%clk 0:00:04]} 86. Qd8+ {[%clk 0:00:05]}  Ka7 {[%clk 0:00:04]} 87. Qd4+ {[%clk 0:00:05]}  Ka8 {[%clk 0:00:05]} 88. Qd8+ {[%clk 0:00:05]}  Ka7 {[%clk 0:00:05]} 1/2-1/2


[Site "https://www.chess.com"]

[Event "Titled Tuesday Blitz October 31 Early 2023"]
[White "Mishra, Manoj"]
[Black "Kostiukov, Alexandr"]
[WhiteFideId "5006007"]
[BlackFideId "14108100"]
[WhiteElo "2182"]
[BlackElo "2429"]
[Result "0-1"]
[Round "4"]
[TimeControl "180+1"]
[Date "2023.10.31"]
[WhiteClock "0:00:03"]
[BlackClock "0:00:11"]
[Board "150"]

1. d4 {[%clk 0:02:59]}  g6 {[%clk 0:02:59]} 2. h4 {[%clk 0:02:57]}  Nf6 {[%clk 0:02:58]} 3. Nc3 {[%clk 0:02:55]}  c5 {[%clk 0:02:57]} 4. d5 {[%clk 0:02:55]}  d6 {[%clk 0:02:53]} 5. e4 {[%clk 0:02:54]}  Bg7 {[%clk 0:02:51]} 6. Be2 {[%clk 0:02:51]}  h6 {[%clk 0:02:40]} 7. Be3 {[%clk 0:02:45]}  a6 {[%clk 0:02:39]} 8. a4 {[%clk 0:02:44]}  Qa5 {[%clk 0:02:36]} 9. Nf3 {[%clk 0:02:38]}  Nxe4 {[%clk 0:02:32]} 10. Nd2 {[%clk 0:02:29]}  Nxc3 {[%clk 0:02:09]} 11. bxc3 {[%clk 0:02:29]}  Bxc3 {[%clk 0:02:02]} 12. Kf1 {[%clk 0:02:27]}  Bg7 {[%clk 0:01:31]} 13. Nc4 {[%clk 0:02:13]}  Qc7 {[%clk 0:01:29]} 14. a5 {[%clk 0:02:08]}  Nd7 {[%clk 0:01:29]} 15. Rb1 {[%clk 0:02:07]}  O-O {[%clk 0:01:23]} 16. h5 {[%clk 0:02:04]}  g5 {[%clk 0:01:20]} 17. Qd2 {[%clk 0:01:54]}  Nf6 {[%clk 0:01:07]} 18. Bxg5 {[%clk 0:01:47]}  Ne4 {[%clk 0:01:06]} 19. Bxh6 {[%clk 0:01:24]}  Nxd2+ {[%clk 0:01:04]} 20. Bxd2 {[%clk 0:01:25]}  Bf5 {[%clk 0:01:00]} 21. h6 {[%clk 0:01:21]}  Bf6 {[%clk 0:00:58]} 22. h7+ {[%clk 0:01:09]}  Bxh7 {[%clk 0:00:52]} 23. Rb3 {[%clk 0:01:06]}  Bxc2 {[%clk 0:00:41]} 24. Rg3+ {[%clk 0:00:58]}  Bg6 {[%clk 0:00:40]} 25. f4 {[%clk 0:00:50]}  Qd7 {[%clk 0:00:30]} 26. Bg4 {[%clk 0:00:48]}  Qb5 {[%clk 0:00:26]} 27. Be2 {[%clk 0:00:44]}  Qb1+ {[%clk 0:00:25]} 28. Be1 {[%clk 0:00:44]}  Qe4 {[%clk 0:00:20]} 29. Nb6 {[%clk 0:00:33]}  Qxf4+ {[%clk 0:00:18]} 30. Rf3 {[%clk 0:00:31]}  Qc1 {[%clk 0:00:17]} 31. Nd7 {[%clk 0:00:27]}  Bd4 {[%clk 0:00:14]} 32. g4 {[%clk 0:00:22]}  Kg7 {[%clk 0:00:13]} 33. Kg2 {[%clk 0:00:20]}  Qg5 {[%clk 0:00:12]} 34. Rg3 {[%clk 0:00:10]}  Be4+ {[%clk 0:00:12]} 35. Bf3 {[%clk 0:00:10]}  Bxf3+ {[%clk 0:00:12]} 36. Kxf3 {[%clk 0:00:09]}  Rh8 {[%clk 0:00:12]} 37. Rgh3 {[%clk 0:00:05]}  Qe3+ {[%clk 0:00:11]} 38. Kg2 {[%clk 0:00:06]}  Rxh3 {[%clk 0:00:11]} 39. Rxh3 {[%clk 0:00:03]}  Qxe1 {[%clk 0:00:11]} 0-1


[Site "https://www.chess.com"]

[Event "Titled Tuesday Blitz October 31 Early 2023"]
[White "crazy_m_attack"]
[Black "MIM06"]
[WhiteElo "2426"]
[BlackElo "2181"]
[Result "0-1"]
[Round "4"]
[TimeControl "180+1"]
[Date "2023.10.31"]
[WhiteClock "0:00:02"]
[BlackClock "0:00:05"]
[Board "152"]

1. e4 {[%clk 0:03:00]}  c6 {[%clk 0:02:58]} 2. d4 {[%clk 0:03:00]}  d5 {[%clk 0:02:58]} 3. Nc3 {[%clk 0:03:01]}  dxe4 {[%clk 0:02:59]} 4. Nxe4 {[%clk 0:03:02]}  Nf6 {[%clk 0:02:59]} 5. Nxf6+ {[%clk 0:03:02]}  exf6 {[%clk 0:03:00]} 6. c3 {[%clk 0:03:03]}  Bd6 {[%clk 0:03:00]} 7. Bd3 {[%clk 0:03:03]}  Na6 {[%clk 0:03:01]} 8. Ne2 {[%clk 0:02:50]}  Nc7 {[%clk 0:02:59]} 9. a3 {[%clk 0:02:35]}  Bg4 {[%clk 0:02:34]} 10. c4 {[%clk 0:02:30]}  O-O {[%clk 0:02:20]} 11. O-O {[%clk 0:02:27]}  Re8 {[%clk 0:02:19]} 12. Be3 {[%clk 0:02:27]}  Ne6 {[%clk 0:02:13]} 13. Qd2 {[%clk 0:02:17]}  Bc7 {[%clk 0:02:07]} 14. d5 {[%clk 0:01:50]}  Qd6 {[%clk 0:01:53]} 15. g3 {[%clk 0:01:13]}  Rad8 {[%clk 0:01:37]} 16. Nc3 {[%clk 0:00:56]}  Nc5 {[%clk 0:01:24]} 17. Bc2 {[%clk 0:00:47]}  Nd7 {[%clk 0:00:50]} 18. Ne4 {[%clk 0:00:30]}  Qf8 {[%clk 0:00:37]} 19. d6 {[%clk 0:00:23]}  Ne5 {[%clk 0:00:37]} 20. Qb4 {[%clk 0:00:11]}  a5 {[%clk 0:00:27]} 21. Qxb7 {[%clk 0:00:10]}  Bxd6 {[%clk 0:00:28]} 22. Nxd6 {[%clk 0:00:08]}  Qxd6 {[%clk 0:00:26]} 23. Be4 {[%clk 0:00:03]}  Rb8 {[%clk 0:00:20]} 24. Qa6 {[%clk 0:00:02]}  f5 {[%clk 0:00:19]} 25. Bg2 {[%clk 0:00:02]}  Rxb2 {[%clk 0:00:14]} 26. Rac1 {[%clk 0:00:01]}  Nd3 {[%clk 0:00:06]} 27. Qxa5 {[%clk 0:00:02]}  Nxc1 {[%clk 0:00:06]} 28. Bxc1 {[%clk 0:00:02]}  Rc2 {[%clk 0:00:05]} 29. Bf4 {[%clk 0:00:03]}  Qe6 {[%clk 0:00:04]} 30. Qa4 {[%clk 0:00:02]}  Re2 {[%clk 0:00:03]} 31. Qxc6 {[%clk 0:00:02]}  Re1 {[%clk 0:00:03]} 32. Qxe6 {[%clk 0:00:02]}  Rxf1+ {[%clk 0:00:04]} 33. Bxf1 {[%clk 0:00:02]}  fxe6 {[%clk 0:00:04]} 34. h3 {[%clk 0:00:03]}  e5 {[%clk 0:00:04]} 35. Be3 {[%clk 0:00:02]}  Bh5 {[%clk 0:00:05]} 36. Bg2 {[%clk 0:00:02]}  Bf7 {[%clk 0:00:05]} 37. c5 {[%clk 0:00:02]}  Rc8 {[%clk 0:00:06]} 38. c6 {[%clk 0:00:03]}  Be8 {[%clk 0:00:05]} 39. Bb6 {[%clk 0:00:04]}  Bxc6 {[%clk 0:00:05]} 40. Bf1 {[%clk 0:00:04]}  Bd5 {[%clk 0:00:05]} 41. a4 {[%clk 0:00:04]}  Kf7 {[%clk 0:00:04]} 42. Kh2 {[%clk 0:00:04]}  Ke6 {[%clk 0:00:04]} 43. a5 {[%clk 0:00:04]}  Ra8 {[%clk 0:00:04]} 44. Bc7 {[%clk 0:00:02]}  g6 {[%clk 0:00:03]} 45. h4 {[%clk 0:00:02]}  Bf3 {[%clk 0:00:03]} 46. Bc4+ {[%clk 0:00:02]}  Bd5 {[%clk 0:00:04]} 47. Bb5 {[%clk 0:00:02]}  h6 {[%clk 0:00:04]} 48. Kh3 {[%clk 0:00:01]}  g5 {[%clk 0:00:04]} 49. hxg5 {[%clk 0:00:01]}  hxg5 {[%clk 0:00:05]} 50. Kh2 {[%clk 0:00:01]}  Rh8+ {[%clk 0:00:05]} 51. Kg1 {[%clk 0:00:02]}  Rh1# {[%clk 0:00:05]} 0-1


[Site "https://www.chess.com"]

[Event "Titled Tuesday Blitz October 31 Early 2023"]
[White "Leve, Nitai"]
[Black "knightinshiningarmour16"]
[WhiteFideId "2006898"]
[WhiteElo "2424"]
[BlackElo "2179"]
[Result "1-0"]
[Round "4"]
[TimeControl "180+1"]
[Date "2023.10.31"]
[WhiteClock "0:00:13"]
[BlackClock "0:00:41"]
[Board "153"]

1. e4 {[%clk 0:01:40]}  c6 {[%clk 0:02:59]} 2. d4 {[%clk 0:01:37]}  d5 {[%clk 0:02:59]} 3. exd5 {[%clk 0:01:38]}  cxd5 {[%clk 0:02:59]} 4. c4 {[%clk 0:01:39]}  Nf6 {[%clk 0:02:58]} 5. Nc3 {[%clk 0:01:34]}  Be6 {[%clk 0:02:57]} 6. Qb3 {[%clk 0:01:31]}  dxc4 {[%clk 0:02:43]} 7. Qxb7 {[%clk 0:01:30]}  Nbd7 {[%clk 0:02:42]} 8. Bf4 {[%clk 0:01:18]}  Nb6 {[%clk 0:02:07]} 9. g3 {[%clk 0:00:49]}  Nfd5 {[%clk 0:01:56]} 10. Bg2 {[%clk 0:00:46]}  Nxc3 {[%clk 0:01:39]} 11. bxc3 {[%clk 0:00:41]}  Bd5 {[%clk 0:01:37]} 12. Bxd5 {[%clk 0:00:26]}  Qxd5 {[%clk 0:01:37]} 13. Qxd5 {[%clk 0:00:26]}  Nxd5 {[%clk 0:01:38]} 14. Ne2 {[%clk 0:00:22]}  e6 {[%clk 0:01:34]} 15. Rb1 {[%clk 0:00:21]}  Ba3 {[%clk 0:01:32]} 16. O-O {[%clk 0:00:19]}  O-O {[%clk 0:01:32]} 17. Rb7 {[%clk 0:00:18]}  h6 {[%clk 0:01:31]} 18. h4 {[%clk 0:00:18]}  Nxf4 {[%clk 0:01:22]} 19. Nxf4 {[%clk 0:00:18]}  Rfb8 {[%clk 0:01:21]} 20. Rfb1 {[%clk 0:00:18]}  Rxb7 {[%clk 0:01:21]} 21. Rxb7 {[%clk 0:00:18]}  Rc8 {[%clk 0:01:13]} 22. Rxa7 {[%clk 0:00:18]}  Bb2 {[%clk 0:01:13]} 23. Ne2 {[%clk 0:00:17]}  f6 {[%clk 0:01:12]} 24. Rb7 {[%clk 0:00:17]}  Ba3 {[%clk 0:01:09]} 25. Ra7 {[%clk 0:00:16]}  Bb2 {[%clk 0:01:09]} 26. a4 {[%clk 0:00:17]}  e5 {[%clk 0:01:08]} 27. dxe5 {[%clk 0:00:17]}  fxe5 {[%clk 0:01:09]} 28. Rb7 {[%clk 0:00:17]}  Ba3 {[%clk 0:01:07]} 29. a5 {[%clk 0:00:18]}  Ra8 {[%clk 0:01:07]} 30. Rb5 {[%clk 0:00:18]}  Bd6 {[%clk 0:01:04]} 31. Kg2 {[%clk 0:00:18]}  Bc7 {[%clk 0:01:03]} 32. Rc5 {[%clk 0:00:18]}  Bxa5 {[%clk 0:01:03]} 33. Rxc4 {[%clk 0:00:18]}  Kf7 {[%clk 0:01:03]} 34. Kf3 {[%clk 0:00:18]}  Ke6 {[%clk 0:01:03]} 35. Ke4 {[%clk 0:00:17]}  Ra6 {[%clk 0:01:00]} 36. f4 {[%clk 0:00:16]}  exf4 {[%clk 0:01:00]} 37. Nxf4+ {[%clk 0:00:17]}  Kf7 {[%clk 0:01:00]} 38. Nd5 {[%clk 0:00:16]}  Re6+ {[%clk 0:01:00]} 39. Kd3 {[%clk 0:00:16]}  Bd8 {[%clk 0:00:59]} 40. Re4 {[%clk 0:00:15]}  Rd6 {[%clk 0:00:59]} 41. Rd4 {[%clk 0:00:15]}  g5 {[%clk 0:00:56]} 42. hxg5 {[%clk 0:00:14]}  Bxg5 {[%clk 0:00:55]} 43. c4 {[%clk 0:00:14]}  Bc1 {[%clk 0:00:54]} 44. c5 {[%clk 0:00:13]}  Rd8 {[%clk 0:00:54]} 45. c6 {[%clk 0:00:13]}  Bb2 {[%clk 0:00:54]} 46. Rf4+ {[%clk 0:00:13]}  Kg6 {[%clk 0:00:54]} 47. c7 {[%clk 0:00:12]}  Rxd5+ {[%clk 0:00:52]} 48. Kc4 {[%clk 0:00:11]}  Rd1 {[%clk 0:00:50]} 49. Kb3 {[%clk 0:00:10]}  Rc1 {[%clk 0:00:50]} 50. Rc4 {[%clk 0:00:10]}  Rxc4 {[%clk 0:00:44]} 51. Kxc4 {[%clk 0:00:11]}  Be5 {[%clk 0:00:44]} 52. c8=Q {[%clk 0:00:12]}  Bxg3 {[%clk 0:00:43]} 53. Qg4+ {[%clk 0:00:12]}  Kh7 {[%clk 0:00:42]} 54. Qxg3 {[%clk 0:00:13]}  h5 {[%clk 0:00:42]} 55. Qg5 {[%clk 0:00:12]}  h4 {[%clk 0:00:41]} 56. Kd5 {[%clk 0:00:12]}  h3 {[%clk 0:00:41]} 57. Ke6 {[%clk 0:00:13]}  h2 {[%clk 0:00:41]} 58. Kf7 {[%clk 0:00:13]}  h1=Q {[%clk 0:00:41]} 59. Qg7# {[%clk 0:00:13]} 1-0


[Site "https://www.chess.com"]

[Event "Titled Tuesday Blitz October 31 Early 2023"]
[White "Kuznetsova, Olga"]
[Black "Tarnowska, Aleksandra"]
[WhiteFideId "4191323"]
[BlackFideId "1180967"]
[WhiteElo "2418"]
[BlackElo "2156"]
[Result "1-0"]
[Round "4"]
[TimeControl "180+1"]
[Date "2023.10.31"]
[WhiteClock "0:00:09"]
[BlackClock "0:00:01"]
[Board "154"]

1. d4 {[%clk 0:02:56]}  d5 {[%clk 0:02:37]} 2. c4 {[%clk 0:02:55]}  e6 {[%clk 0:02:36]} 3. Nc3 {[%clk 0:02:54]}  Nf6 {[%clk 0:02:34]} 4. Bg5 {[%clk 0:02:54]}  Be7 {[%clk 0:02:34]} 5. e3 {[%clk 0:02:54]}  O-O {[%clk 0:02:34]} 6. Rc1 {[%clk 0:02:53]}  h6 {[%clk 0:02:31]} 7. Bh4 {[%clk 0:02:51]}  Nbd7 {[%clk 0:02:29]} 8. cxd5 {[%clk 0:02:46]}  exd5 {[%clk 0:02:22]} 9. Bg3 {[%clk 0:02:45]}  c6 {[%clk 0:02:22]} 10. Nf3 {[%clk 0:02:44]}  Ne4 {[%clk 0:02:21]} 11. Nxe4 {[%clk 0:02:44]}  dxe4 {[%clk 0:02:22]} 12. Nd2 {[%clk 0:02:44]}  Nf6 {[%clk 0:02:21]} 13. Qc2 {[%clk 0:02:40]}  Bf5 {[%clk 0:02:17]} 14. Bc4 {[%clk 0:02:32]}  Qa5 {[%clk 0:02:03]} 15. a3 {[%clk 0:02:31]}  Rac8 {[%clk 0:02:00]} 16. Be5 {[%clk 0:02:25]}  Ng4 {[%clk 0:01:46]} 17. Bg3 {[%clk 0:02:18]}  Nf6 {[%clk 0:01:45]} 18. O-O {[%clk 0:02:09]}  Bg6 {[%clk 0:01:44]} 19. Ba2 {[%clk 0:01:30]}  Rfe8 {[%clk 0:01:40]} 20. Nc4 {[%clk 0:01:30]}  Qh5 {[%clk 0:01:34]} 21. Ne5 {[%clk 0:01:30]}  Ng4 {[%clk 0:01:17]} 22. Nxg6 {[%clk 0:01:28]}  Qxg6 {[%clk 0:01:18]} 23. h3 {[%clk 0:01:27]}  Nf6 {[%clk 0:01:18]} 24. Be5 {[%clk 0:01:19]}  Nd7 {[%clk 0:01:11]} 25. Bh2 {[%clk 0:01:16]}  Kh8 {[%clk 0:01:02]} 26. b4 {[%clk 0:01:15]}  Bg5 {[%clk 0:00:53]} 27. d5 {[%clk 0:01:05]}  c5 {[%clk 0:00:18]} 28. Qa4 {[%clk 0:00:59]}  Ne5 {[%clk 0:00:14]} 29. Bxe5 {[%clk 0:00:58]}  Rxe5 {[%clk 0:00:14]} 30. bxc5 {[%clk 0:00:52]}  Bh4 {[%clk 0:00:12]} 31. Bb1 {[%clk 0:00:42]}  Rce8 {[%clk 0:00:05]} 32. d6 {[%clk 0:00:38]}  f5 {[%clk 0:00:03]} 33. d7 {[%clk 0:00:35]}  Rd8 {[%clk 0:00:03]} 34. Rcd1 {[%clk 0:00:32]}  Re6 {[%clk 0:00:02]} 35. Qxa7 {[%clk 0:00:29]}  Qg5 {[%clk 0:00:02]} 36. Qxb7 {[%clk 0:00:28]}  Rg6 {[%clk 0:00:03]} 37. g4 {[%clk 0:00:18]}  fxg4 {[%clk 0:00:02]} 38. Qxe4 {[%clk 0:00:16]}  gxh3+ {[%clk 0:00:03]} 39. Kh1 {[%clk 0:00:16]}  Qh5 {[%clk 0:00:01]} 40. Qxg6 {[%clk 0:00:13]}  Qe5 {[%clk 0:00:01]} 41. Qh7# {[%clk 0:00:09]} 1-0


[Site "https://www.chess.com"]

[Event "Titled Tuesday Blitz October 31 Early 2023"]
[White "Guevara Sanchez, Erick Marvin"]
[Black "Bochnicka, Vladimir"]
[WhiteFideId "6700136"]
[BlackFideId "14943450"]
[WhiteElo "2132"]
[BlackElo "2414"]
[Result "0-1"]
[Round "4"]
[TimeControl "180+1"]
[Date "2023.10.31"]
[WhiteClock "0:00:06"]
[BlackClock "0:00:13"]
[Board "155"]

1. e4 {[%clk 0:03:00]}  e5 {[%clk 0:02:53]} 2. Nf3 {[%clk 0:03:01]}  Nc6 {[%clk 0:02:53]} 3. Bc4 {[%clk 0:03:01]}  Nf6 {[%clk 0:02:53]} 4. d3 {[%clk 0:03:00]}  h6 {[%clk 0:02:53]} 5. Nbd2 {[%clk 0:02:54]}  d6 {[%clk 0:02:48]} 6. Nf1 {[%clk 0:02:53]}  g5 {[%clk 0:02:48]} 7. Ng3 {[%clk 0:02:51]}  Bg7 {[%clk 0:02:47]} 8. O-O {[%clk 0:02:42]}  O-O {[%clk 0:02:47]} 9. c3 {[%clk 0:02:41]}  Ne7 {[%clk 0:02:39]} 10. Re1 {[%clk 0:02:28]}  c6 {[%clk 0:02:38]} 11. Bb3 {[%clk 0:02:27]}  Ng6 {[%clk 0:02:38]} 12. d4 {[%clk 0:02:27]}  Re8 {[%clk 0:02:28]} 13. dxe5 {[%clk 0:02:17]}  dxe5 {[%clk 0:02:26]} 14. Qxd8 {[%clk 0:02:14]}  Rxd8 {[%clk 0:02:27]} 15. Be3 {[%clk 0:02:13]}  Bg4 {[%clk 0:02:27]} 16. Rad1 {[%clk 0:02:02]}  Rxd1 {[%clk 0:02:01]} 17. Bxd1 {[%clk 0:01:56]}  Rd8 {[%clk 0:01:57]} 18. Be2 {[%clk 0:01:55]}  Nf4 {[%clk 0:01:54]} 19. Bxf4 {[%clk 0:01:54]}  exf4 {[%clk 0:01:48]} 20. Nf5 {[%clk 0:01:53]}  Nxe4 {[%clk 0:01:45]} 21. Nxg7 {[%clk 0:01:53]}  Kxg7 {[%clk 0:01:45]} 22. h3 {[%clk 0:01:49]}  Bxf3 {[%clk 0:01:38]} 23. Bxf3 {[%clk 0:01:48]}  Nc5 {[%clk 0:01:34]} 24. b4 {[%clk 0:01:41]}  Ne6 {[%clk 0:01:33]} 25. Bg4 {[%clk 0:01:38]}  Kf6 {[%clk 0:01:33]} 26. Kf1 {[%clk 0:01:31]}  Rd3 {[%clk 0:01:29]} 27. Rc1 {[%clk 0:01:28]}  Rd2 {[%clk 0:01:28]} 28. a4 {[%clk 0:01:28]}  Nc7 {[%clk 0:01:12]} 29. Ke1 {[%clk 0:01:24]}  Ra2 {[%clk 0:01:12]} 30. Bd1 {[%clk 0:01:23]}  Nd5 {[%clk 0:01:10]} 31. Bb3 {[%clk 0:01:19]}  Rb2 {[%clk 0:01:09]} 32. Bxd5 {[%clk 0:01:18]}  cxd5 {[%clk 0:01:10]} 33. a5 {[%clk 0:01:08]}  Ke5 {[%clk 0:01:04]} 34. Rd1 {[%clk 0:00:42]}  Rc2 {[%clk 0:00:58]} 35. Rd3 {[%clk 0:00:42]}  f5 {[%clk 0:00:54]} 36. Kf1 {[%clk 0:00:36]}  h5 {[%clk 0:00:51]} 37. Ke1 {[%clk 0:00:26]}  g4 {[%clk 0:00:52]} 38. h4 {[%clk 0:00:23]}  Rc1+ {[%clk 0:00:28]} 39. Ke2 {[%clk 0:00:20]}  Rh1 {[%clk 0:00:28]} 40. g3 {[%clk 0:00:19]}  f3+ {[%clk 0:00:27]} 41. Kd2 {[%clk 0:00:18]}  Rh2 {[%clk 0:00:20]} 42. Ke3 {[%clk 0:00:18]}  Rh1 {[%clk 0:00:15]} 43. Rd2 {[%clk 0:00:18]}  Rc1 {[%clk 0:00:15]} 44. Kd3 {[%clk 0:00:18]}  Re1 {[%clk 0:00:13]} 45. Ra2 {[%clk 0:00:15]}  f4 {[%clk 0:00:12]} 46. gxf4+ {[%clk 0:00:14]}  Kxf4 {[%clk 0:00:13]} 47. Kd4 {[%clk 0:00:14]}  Rd1+ {[%clk 0:00:12]} 48. Kc5 {[%clk 0:00:14]}  g3 {[%clk 0:00:12]} 49. fxg3+ {[%clk 0:00:13]}  Kxg3 {[%clk 0:00:13]} 50. Kd6 {[%clk 0:00:09]}  f2 {[%clk 0:00:13]} 51. Rxf2 {[%clk 0:00:08]}  Kxf2 {[%clk 0:00:13]} 52. Kc7 {[%clk 0:00:08]}  b6 {[%clk 0:00:12]} 53. axb6 {[%clk 0:00:06]}  axb6 {[%clk 0:00:13]} 54. Kxb6 {[%clk 0:00:07]}  d4 {[%clk 0:00:13]} 55. c4 {[%clk 0:00:06]}  d3 {[%clk 0:00:13]} 56. c5 {[%clk 0:00:06]}  d2 {[%clk 0:00:14]} 57. c6 {[%clk 0:00:07]}  Rc1 {[%clk 0:00:15]} 58. c7 {[%clk 0:00:06]}  d1=Q {[%clk 0:00:15]} 59. b5 {[%clk 0:00:05]}  Qd6+ {[%clk 0:00:14]} 60. Ka5 {[%clk 0:00:06]}  Ra1# {[%clk 0:00:13]} 0-1


[Site "https://www.chess.com"]

[Event "Titled Tuesday Blitz October 31 Early 2023"]
[White "Samarth J Rao"]
[Black "Spichkin, Alexander"]
[WhiteFideId "46652370"]
[BlackFideId "4144074"]
[WhiteElo "2098"]
[BlackElo "2411"]
[Result "1-0"]
[Round "4"]
[TimeControl "180+1"]
[Date "2023.10.31"]
[WhiteClock "0:00:40"]
[BlackClock "0:01:02"]
[Board "156"]

1. e4 {[%clk 0:02:52]}  e5 {[%clk 0:03:00]} 2. Nf3 {[%clk 0:02:52]}  d5 {[%clk 0:03:00]} 3. d3 {[%clk 0:02:49]}  dxe4 {[%clk 0:02:59]} 4. dxe4 {[%clk 0:02:50]}  Qxd1+ {[%clk 0:03:00]} 5. Kxd1 {[%clk 0:02:51]}  Nc6 {[%clk 0:02:59]} 6. c3 {[%clk 0:02:51]}  Bg4 {[%clk 0:02:58]} 7. Kc2 {[%clk 0:02:50]}  f5 {[%clk 0:02:56]} 8. Nbd2 {[%clk 0:02:47]}  O-O-O {[%clk 0:02:56]} 9. Bb5 {[%clk 0:02:44]}  Nge7 {[%clk 0:02:53]} 10. Ng5 {[%clk 0:02:36]}  Bh5 {[%clk 0:02:42]} 11. exf5 {[%clk 0:02:35]}  Nxf5 {[%clk 0:02:36]} 12. g4 {[%clk 0:02:30]}  Bxg4 {[%clk 0:02:27]} 13. Bxc6 {[%clk 0:02:30]}  bxc6 {[%clk 0:02:24]} 14. Nf7 {[%clk 0:02:30]}  Bc5 {[%clk 0:02:23]} 15. Ne4 {[%clk 0:02:28]}  Bf3 {[%clk 0:02:12]} 16. Nxc5 {[%clk 0:02:22]}  Bxh1 {[%clk 0:02:12]} 17. Nxd8 {[%clk 0:02:20]}  Rxd8 {[%clk 0:02:05]} 18. Bg5 {[%clk 0:02:13]}  Rd5 {[%clk 0:02:04]} 19. b4 {[%clk 0:02:13]}  Bf3 {[%clk 0:02:01]} 20. Rg1 {[%clk 0:02:08]}  h6 {[%clk 0:02:00]} 21. Bd2 {[%clk 0:02:07]}  g5 {[%clk 0:02:00]} 22. a4 {[%clk 0:02:01]}  a5 {[%clk 0:01:58]} 23. Be3 {[%clk 0:01:54]}  Bh5 {[%clk 0:01:46]} 24. c4 {[%clk 0:01:38]}  Rd8 {[%clk 0:01:35]} 25. bxa5 {[%clk 0:01:36]}  Bg6 {[%clk 0:01:34]} 26. Kc3 {[%clk 0:01:29]}  Kb8 {[%clk 0:01:30]} 27. Rb1+ {[%clk 0:01:27]}  Ka8 {[%clk 0:01:30]} 28. Rb7 {[%clk 0:01:22]}  Rc8 {[%clk 0:01:28]} 29. a6 {[%clk 0:01:21]}  Nd6 {[%clk 0:01:28]} 30. f3 {[%clk 0:00:56]}  Bf7 {[%clk 0:01:28]} 31. Rb4 {[%clk 0:00:53]}  Nf5 {[%clk 0:01:14]} 32. Bf2 {[%clk 0:00:50]}  Bh5 {[%clk 0:01:13]} 33. Nd7 {[%clk 0:00:45]}  Bxf3 {[%clk 0:01:04]} 34. Rb7 {[%clk 0:00:41]}  e4 {[%clk 0:01:02]} 35. Ra7# {[%clk 0:00:40]} 1-0


[Site "https://www.chess.com"]